Workbook

Sheet Datos básicos
B1: Datos básicos | J1: Instrucciones para el receptor de financiamiento: Introduzca primero los siguientes datos básicos antes de rellenar la hoja “Presupuesto financiamientos”. Rellene solo las celdas con fondo azul. Todas las demás celdas se calculan automáticamente.
B3: Nombre del receptor: | H3: =IF(C3="Bitte eintragen","- Bitte den Namen Ihres Vereins im Feld <Name des Zuschussempfängers> eintragen; "," ") -> 
B5: ¿Se trata del primer presupuesto o de una adaptación del contrato? | C5: Seleccionar | F5: =IF(C5="Complemento al contrato","¿Qué número de adaptación del contrato?:","") ->  | G5: Seleccionar solo en caso de complemento al contrato | H5: =IF(C5="Vertragsanpassung",1,0) -> 0
B6: Título del proyecto y número del contrato | H6: =IF(C6="Veranstaltung",1,IF(C6="Projekt",1,0)) -> 0
B7: ¿Necesita costos generales de administración? | C7: Seleccionar | D7: Indicar el importe de los costos generales de administración en porcentaje | H7: =IF(C7="Ja, anderer Betrag",1,0) -> 0
B8: ¿Aporta usted una contribución (financiera) propia? | C8: Seleccionar | D8: Importe en EUR | H8: =IF(C8="Ja, anderer Betrag",1,0) -> 0
B9: ¿Cuántos donantes está previsto que cofinancien el proyecto (además de la GIZ)? | C9: Seleccionar | D9: Nombre del proveedor externo de fondos | F9: Importe de los fondos de terceros en EUR
D10: Nombre del proveedor externo de fondos | F10: Importe de los fondos de terceros en EUR | H10: =IF(C10="Ja",1,0) -> 0
D11: Nombre del proveedor externo de fondos | F11: Importe de los fondos de terceros en EUR | H11: =IF(C11="Ja",1,0) -> 0
D12: Nombre del proveedor externo de fondos | F12: Importe de los fondos de terceros en EUR
D13: Nombre del proveedor externo de fondos | F13: Importe de los fondos de terceros en EUR
D14: Nombre del proveedor externo de fondos | F14: Importe de los fondos de terceros en EUR
D15: Nombre del proveedor externo de fondos | F15: Importe de los fondos de terceros en EUR
B16: ¿Está previsto transferir financiamientos a receptores terceros? (Tenga en cuenta que no se está haciendo referencia a prestaciones). | C16: Seleccionar | D16: Son contrapartes que implementan de forma autónoma una parte del proyecto del receptor. Debe presentarse un presupuesto aparte y el proyecto de la GIZ debe realizar un examen de la aptitud comercial y jurídica (solo los criterios de personalidad jurídica y utilidad pública).
B17: ¿Se adquieren medicamentos y pesticidas y fertilizantes minerales? | C17: Seleccionar | D17: Es necesario un proceso de autorización interno de la GIZ aparte.
B18: ¿Porcentaje de adquisiciones de equipos y materiales superior a 1 000 000 EUR o de más del 50 % con un valor contractual del financiamiento de al menos 400 000 EUR? | C18: Seleccionar | D18: Es necesario un proceso de autorización interno de la GIZ aparte.
B19: ¿Se financian medidas de construcción? | C19: Seleccionar | D19: Dado el caso, puede ser necesario un proceso de autorización interno de la GIZ aparte.
B20: ¿Desea que se muestren ayudas para la introducción de datos en el presupuesto? Se recomienda responder “Sí” para la edición. Se recomienda responder “No” para una mejor visión de conjunto. | C20: Sí
B22: Fecha de la creación del presupuesto:

Sheet Presupuesto financiamientos
A1: =IF('Datos básicos'!C3="","Introduzca primero los datos básicos",CONCATENATE("Presupuesto estimado - Anexo 1",CHAR(10),'Datos básicos'!C3," - ",'Datos básicos'!C6,"",'Datos básicos'!E6,"",IF(L4="VE",CONCATENATE(" - ",'Datos básicos'!G5," Complemento al contrato",""),""))) -> Introduzca primero los datos básicos | J1: ='Datos básicos'!C22 -> 00:00:00 | N1: Sin cambios | O1: Instrucciones: Introduzca primero los datos básicos antes de rellenar esta hoja “Presupuesto financiamientos”. En la hoja “Presupuesto financiamientos” rellene solo las celdas con fondo azul. Todas las demás celdas se calculan automáticamente.
J2: 2023-08 | N2: cambios
B3: Descripción | C3: Có- digo | D3: Número | E3: Unidad (p. ej., persona, vehículo, sala…) | F3: Número | G3: Unidad (p. ej., meses, días, cursos…) | H3: Subvencio-nable hasta en EUR (precio por unidad) | I3: Contribución total de la GIZ en EUR (hasta) | J3: Contribución propia / financiamiento de terceros en EUR (hasta) | L3: =IF($L$4="VE",CONCATENATE("En el caso de ajustes contractuales",CHAR(10),"¿Ha cambiado la línea presupuestaria?"),"") ->  | O3: Indicaciones generales: Este formato del presupuesto es válido como base de liquidación. Si lo desea, para su uso interno puede crear otros archivos con información más detallada. Todas las partidas indicadas en el presupuesto se deben reflejar en la descripción del proyecto para que quede clara la referencia al proyecto. La tabla dispone de fórmulas que deben mantenerse. Mantenga el formato con dos decimales. Se recomienda redondear al alza las unidades en la medida de lo posible. Los costos se acuerdan con un valor de “hasta”.
B4: =IF('Datos básicos'!C20="Sí",CONCATENATE("Nota: Las celdas con fondo azul deben ser rellenados por ",IF('Datos básicos'!C3=""," el receptor",'Datos básicos'!C3)),"") -> Nota: Las celdas con fondo azul deben ser rellenados por el receptor | I4: =IF('Datos básicos'!C20="Sí","Nota: se calculan automáticamente","") -> Nota: se calculan automáticamente | L4: =IF('Datos básicos'!C5="Complemento al contrato","VE","NOVE") -> NOVE
A5: 1 | B5: Personal propio - precio de coste para los empleados del receptor (denominación de función) (Indicación 1: Solo colaboradores y colaboradoras de sus organizaciones; la acreditación de esta línea presupuestaria debe realizarse en forma de liquidaciones salariales o, en el caso de financiamientos parciales, en forma de liquidaciones salariales y registros de tiempos trabajados; Indicación 2: Solamente pueden liquidarse costos directos del personal (costo bruto del personal para el empleador); los suplementos, como costos generales de personal, que se calculan de manera prorrateada sobre el personal, no son subvencionables). | D5: =IF('Datos básicos'!C20="Sí",CONCATENATE("Ayuda:",Ejemplo!P5),"") -> Ayuda:La columna “Subvencionable hasta” debería indicar siempre el costo bruto del empleador. En el caso de los puestos de jornada parcial el porcentaje debe indicarse en la columna D. Indique qué costos adicionales no salariales prescritos por ley se generan en su país. Por norma general son financiables las contribuciones sociales y los pagos acordados en virtud del contrato de trabajo o del convenio colectivo (excepto los pagos de bonificaciones o las participaciones en los beneficios). Otros gastos accesorios deberán concertarse, examinarse e integrarse en la línea presupuestaria en forma de nota antes de la elaboración del contrato. Los contratos de miniempleos o de personal temporal estudiantil se deben atribuir a los costos de personal, aun cuando no se abonen contribuciones sociales. Si está previsto financiar proporcionalmente a varias personas (por ejemplo, 3 personas a un 75 %) incrementar el número de meses correspondientemente e incluir el número de personas en la descripción de la línea presupuestaria. | I5: =SUM(I6:I42) -> 0.00 € | J5: La GIZ no puede aceptar líneas presupuestarias de manera prorrateada, excepto las líneas presupuestarias principales "costos de personal", que se pueden atribuir porcentualmente, así como “costos locales del proyecto prorrateados". Otros costes que surgen en el curso de la ejecución del proyecto y que no serán cubiertos por la GIZ se calculan por separado. Ya sea como contribución propia o, dado el caso, como contribución financiera de un tercero/financiación de terceros. | L5: =IF(L4="VE","ATENCIÓN: La GIZ no puede asumir los costos que se generan por las fluctuaciones cambiarias.","") -> 
E6: Persona | G6: Meses | I6: =ROUND(D6*F6*H6,2) -> 0.00 € | L6: Sin cambios
E7: Persona | G7: Meses | I7: =ROUND(D7*F7*H7,2) -> 0.00 € | L7: Sin cambios
E8: Persona | G8: Meses | I8: =ROUND(D8*F8*H8,2) -> 0.00 € | L8: Sin cambios
E9: Persona | G9: Meses | I9: 0.00 € | L9: Sin cambios
E10: Persona | G10: Meses | I10: 0.00 € | L10: Sin cambios
E11: Persona | G11: Meses | I11: 0.00 € | L11: Sin cambios
E12: Persona | G12: Meses | I12: 0.00 € | L12: Sin cambios
E13: Persona | G13: Meses | I13: 0.00 € | L13: Sin cambios
E14: Persona | G14: Meses | I14: 0.00 € | L14: Sin cambios
E15: Persona | G15: Meses | I15: 0.00 € | L15: Sin cambios
E16: Persona | G16: Meses | I16: 0.00 € | L16: Sin cambios
E17: Persona | G17: Meses | I17: 0.00 € | L17: Sin cambios
E18: Persona | G18: Meses | I18: 0.00 € | L18: Sin cambios
E19: Persona | G19: Meses | I19: 0.00 € | L19: Sin cambios
E20: Persona | G20: Meses | I20: 0.00 € | L20: Sin cambios
E21: Persona | G21: Meses | I21: 0.00 € | L21: Sin cambios
E22: Persona | G22: Meses | I22: 0.00 € | L22: Sin cambios
E23: Persona | G23: Meses | I23: 0.00 € | L23: Sin cambios
E24: Persona | G24: Meses | I24: 0.00 € | L24: Sin cambios
E25: Persona | G25: Meses | I25: 0.00 € | L25: Sin cambios
E26: Persona | G26: Meses | I26: 0.00 € | L26: Sin cambios
E27: Persona | G27: Meses | I27: 0.00 € | L27: Sin cambios
E28: Persona | G28: Meses | I28: 0.00 € | L28: Sin cambios
E29: Persona | G29: Meses | I29: 0.00 € | L29: Sin cambios
E30: Persona | G30: Meses | I30: 0.00 € | L30: Sin cambios
E31: Persona | G31: Meses | I31: 0.00 € | L31: Sin cambios
E32: Persona | G32: Meses | I32: 0.00 € | L32: Sin cambios
E33: Persona | G33: Meses | I33: 0.00 € | L33: Sin cambios
E34: Persona | G34: Meses | I34: 0.00 € | L34: Sin cambios
E35: Persona | G35: Meses | I35: 0.00 € | L35: Sin cambios
E36: Persona | G36: Meses | I36: 0.00 € | L36: Sin cambios
E37: Persona | G37: Meses | I37: 0.00 € | L37: Sin cambios
E38: Persona | G38: Meses | I38: 0.00 € | L38: Sin cambios
E39: Persona | G39: Meses | I39: 0.00 € | L39: Sin cambios
E40: Persona | G40: Meses | I40: 0.00 € | L40: Sin cambios
E41: Persona | G41: Meses | I41: =ROUND(D41*F41*H41,2) -> 0.00 € | L41: Sin cambios
E42: Persona | G42: Meses | I42: 0.00 € | L42: Sin cambios
A43: 2 | B43: Servicios externos (tipo/contenido del servicio) | D43: =IF('Datos básicos'!C20="Sí",CONCATENATE("Ayuda:",Ejemplo!P11),"") -> Ayuda:Indicar el nombre de la función; ningún detalle del contrato (horas de trabajo, etc.); mencionar solo el número de los contratos y el valor planificado (deben observarse las directrices de adjudicación relevantes según el texto del contrato); por contrato debería utilizarse una línea presupuestaria; todos los costos generados durante la realización de la prestación en el marco de un contrato de servicios (por ejemplo, capacitación, viajes) se indican en una línea presupuestaria. Eventos: Las prestaciones que realiza un mismo oferente deben indicarse en una línea presupuestaria (por ejemplo, si el catering y el lugar de un evento son ofertados por un hotel, entonces deben indicarse en una misma línea presupuestaria; si se reserva otro hotel para el alojamiento, ese se incluye entonces en una línea presupuestaria individual). Los ingresos que percibe el receptor en concepto de la organización de eventos no se pueden financiar con cargo al contrato (p. ej., alquiler de salas para dependencias propias). Solo se financian costos que se puedan acreditar fehacientemente. | I43: =SUM(I44:I72) -> 0.00 €
E44: Contrato | I44: =ROUND(D44*H44,2) -> 0.00 € | L44: Sin cambios
E45: Contrato | I45: 0.00 € | L45: Sin cambios
E46: Contrato | I46: 0.00 € | L46: Sin cambios
E47: Contrato | I47: 0.00 € | L47: Sin cambios
E48: Contrato | I48: 0.00 € | L48: Sin cambios
E49: Contrato | I49: 0.00 € | L49: Sin cambios
E50: Contrato | I50: 0.00 € | L50: Sin cambios
E51: Contrato | I51: 0.00 € | L51: Sin cambios
E52: Contrato | I52: 0.00 € | L52: Sin cambios
E53: Contrato | I53: 0.00 € | L53: Sin cambios
E54: Contrato | I54: 0.00 € | L54: Sin cambios
E55: Contrato | I55: 0.00 € | L55: Sin cambios
E56: Contrato | I56: 0.00 € | L56: Sin cambios
E57: Contrato | I57: 0.00 € | L57: Sin cambios
E58: Contrato | I58: 0.00 € | L58: Sin cambios
E59: Contrato | I59: 0.00 € | L59: Sin cambios
E60: Contrato | I60: 0.00 € | L60: Sin cambios
E61: Contrato | I61: 0.00 € | L61: Sin cambios
E62: Contrato | I62: 0.00 € | L62: Sin cambios
E63: Contrato | I63: 0.00 € | L63: Sin cambios
E64: Contrato | I64: 0.00 € | L64: Sin cambios
E65: Contrato | I65: 0.00 € | L65: Sin cambios
E66: Contrato | I66: 0.00 € | L66: Sin cambios
E67: Contrato | I67: 0.00 € | L67: Sin cambios
E68: Contrato | I68: 0.00 € | L68: Sin cambios
E69: Contrato | I69: 0.00 € | L69: Sin cambios
E70: Contrato | I70: 0.00 € | L70: Sin cambios
E71: Contrato | I71: 0.00 € | L71: Sin cambios
E72: Contrato | I72: 0.00 € | L72: Sin cambios
A73: 3 | B73: Costos de transporte / gastos de viaje | D73: =IF('Datos básicos'!C20="Sí",CONCATENATE("Ayuda:",Ejemplo!P22),"") -> Ayuda:Entre los gastos de viaje se cuentan normalmente todos los tipos de transporte, alojamientos, viáticos, visados. Otros costos deben indicarse por separado. La liquidación se realiza con base en las facturas y/o las normas sobre viajes del receptor y/o las disposiciones legales (por ejemplo: Ley federal alemana de gastos de viaje). No es deseable una distribución en diferentes grupos de personas. No indique cantidades de los vuelos; en caso de divergencias serían necesarios complementos al contrato; si se lleva a cabo una auditoría se comprobará el número de los vuelos. | I73: =SUM(I74:I101) -> 0.00 €
I74: =ROUND(D74*H74,2) -> 0.00 € | L74: Sin cambios
I75: 0.00 € | L75: Sin cambios
I76: 0.00 € | L76: Sin cambios
I77: 0.00 € | L77: Sin cambios
I78: 0.00 € | L78: Sin cambios
I79: 0.00 € | L79: Sin cambios
I80: 0.00 € | L80: Sin cambios
I81: =ROUND(D81*H81,2) -> 0.00 € | L81: Sin cambios
I82: =ROUND(D82*H82,2) -> 0.00 € | L82: Sin cambios
I83: 0.00 € | L83: Sin cambios
I84: 0.00 € | L84: Sin cambios
I85: 0.00 € | L85: Sin cambios
I86: 0.00 € | L86: Sin cambios
I87: 0.00 € | L87: Sin cambios
I88: 0.00 € | L88: Sin cambios
I89: =ROUND(D89*H89,2) -> 0.00 €
I90: 0.00 €
I91: =ROUND(D91*H91,2) -> 0.00 €
I92: 0.00 €
I93: 0.00 €
I94: 0.00 €
I95: =ROUND(D95*H95,2) -> 0.00 €
I96: =ROUND(D96*H96,2) -> 0.00 €
I97: 0.00 €
I98: 0.00 €
I99: 0.00 € | L99: Sin cambios
I100: 0.00 € | L100: Sin cambios
I101: 0.00 € | L101: Sin cambios
A102: 4 | B102: Adquisición de equipos y materiales | D102: =IF('Datos básicos'!C20="Sí",CONCATENATE("Ayuda:",Ejemplo!P35),"") -> Ayuda:Los bienes que se adquieren y acreditan en una misma factura, deberían indicarse en una línea presupuestaria. P. ej., el equipamiento de TI se puede consignar como una línea presupuestaria. En ese caso debería incluirse entre paréntesis una descripción más detallada de los equipos y materiales que previsiblemente se adquirirán. En el caso de medicamentos y productos agroquímicos, para una autorización se requiere información adicional. Para ello, rellene las hojas "Medicamentos”, “Pesticidas y fertilizantes minerales”. | I102: =SUM(I103:I129) -> 0.00 € | K102: =IF(I180>400000,1,0)+(IF(I102>=(I180/2),1,0)) -> 1
I103: =ROUND(D103*H103,2) -> 0.00 € | L103: Sin cambios
I104: 0.00 € | L104: Sin cambios
I105: 0.00 € | L105: Sin cambios
I106: 0.00 € | L106: Sin cambios
I107: 0.00 € | L107: Sin cambios
I108: =ROUND(D108*H108,2) -> 0.00 € | L108: Sin cambios
I109: 0.00 € | L109: Sin cambios
I110: 0.00 € | L110: Sin cambios
I111: 0.00 € | L111: Sin cambios
I112: 0.00 € | L112: Sin cambios
I113: =ROUND(D113*H113,2) -> 0.00 € | L113: Sin cambios
I114: =ROUND(D114*H114,2) -> 0.00 €
I115: 0.00 €
I116: =ROUND(D116*H116,2) -> 0.00 €
I117: 0.00 €
I118: 0.00 €
I119: 0.00 €
I120: =ROUND(D120*H120,2) -> 0.00 €
I121: =ROUND(D121*H121,2) -> 0.00 €
I122: 0.00 €
I123: =ROUND(D123*H123,2) -> 0.00 €
I124: =ROUND(D124*H124,2) -> 0.00 €
I125: 0.00 € | L125: Sin cambios
I126: 0.00 € | L126: Sin cambios
I127: 0.00 € | L127: Sin cambios
I128: 0.00 € | L128: Sin cambios
I129: 0.00 € | L129: Sin cambios
A130: 5 | B130: Otros costos / consumibles | D130: =IF('Datos básicos'!C20="Sí",CONCATENATE("Ayuda:",Ejemplo!P46),"") -> Ayuda:Tenga en cuenta que los costos indirectos se enmarcan dentro de los costos generales de administración. Solo se pueden presupuestar como líneas presupuestarias individuales los costos directos. Cuando es posible indicar los costos de alquiler, se pueden consignar solo los costos directos, o sea, el alquiler neto sin los gastos accesorios. Los gastos accesorios son costos indirectos y como tales deben incluirse en los costos generales de administración. Al contrario que los equipos y materiales adquiridos, que se utilizan durante un período más largo, en el caso de los consumibles se trata de bienes que se consumen, como por ejemplo cartuchos para impresoras, papel de impresión. | I130: =SUM(I131:I151) -> 0.00 €
I131: =ROUND(D131*H131,2) -> 0.00 € | L131: Sin cambios
I132: 0.00 € | L132: Sin cambios
I133: 0.00 € | L133: Sin cambios
I134: 0.00 € | L134: Sin cambios
I135: 0.00 € | L135: Sin cambios
I136: =ROUND(D136*H136,2) -> 0.00 € | L136: Sin cambios
I137: 0.00 € | L137: Sin cambios
I138: 0.00 € | L138: Sin cambios
I139: 0.00 € | L139: Sin cambios
I140: 0.00 € | L140: Sin cambios
I141: =ROUND(D141*H141,2) -> 0.00 € | L141: Sin cambios
I142: 0.00 € | L142: Sin cambios
I143: =ROUND(D143*H143,2) -> 0.00 €
I144: 0.00 €
I145: =ROUND(D145*H145,2) -> 0.00 €
I146: 0.00 €
I147: 0.00 €
I148: 0.00 € | L148: Sin cambios
I149: 0.00 € | L149: Sin cambios
I150: 0.00 € | L150: Sin cambios
I151: 0.00 € | L151: Sin cambios
A152: 6 | B152: Recursos para apoyar directamente a beneficiarios terceros (Indicación: Esta línea presupuestaria hace referencia principalmente a aportes en especie a beneficiarios terceros. En caso de aportes financieros, debe regularse cómo se comprueban los pagos. El procedimiento de selección de los beneficiarios terceros debe explicarse en la descripción del proyecto). | D152: =IF('Datos básicos'!C20="Sí",CONCATENATE("Ayuda:",Ejemplo!P57),"") -> Ayuda:Tenga en cuenta la indicación en la línea presupuestaria. Los justificantes deben acordarse en el presupuesto y los criterios de selección deben exponerse en la descripción del proyecto. Importante: En este caso se trata solo de beneficiarios que se benefician del proyecto del receptor. Entre estos se cuentan el fomento de empresas emergentes, el fomento de iniciativas, medidas de efectivo por trabajo, concursos de fomento, becas y similares. Se requiere concertación respecto a los justificantes. Respecto a los detalles se requiere asesoramiento de la sección Gestión de contratos. | I152: =SUM(I153:I162) -> 0.00 € | L152: =IF(L151="VE","ATENCIÓN: La GIZ no puede asumir los costos que se generan por las fluctuaciones cambiarias.","") -> 
B153: XXX (facturación contra ...) | I153: =ROUND(D153*F153*H153,2) -> 0.00 € | L153: Sin cambios
B154: XXX (facturación contra ...) | I154: 0.00 € | L154: Keine Änderung
B155: XXX (facturación contra ...) | I155: 0.00 € | L155: Sin cambios
B156: XXX (facturación contra ...) | I156: =ROUND(D156*F156*H156,2) -> 0.00 € | L156: Sin cambios
B157: XXX (facturación contra ...) | I157: 0.00 € | L157: Sin cambios
B158: XXX (facturación contra ...) | I158: 0.00 € | L158: Sin cambios
B159: XXX (facturación contra ...) | I159: 0.00 € | L159: Sin cambios
B160: XXX (facturación contra ...) | I160: 0.00 € | L160: Sin cambios
B161: XXX (facturación contra ...) | I161: =ROUND(D161*F161*H161,2) -> 0.00 € | L161: Sin cambios
B162: XXX (facturación contra ...) | I162: 0.00 € | L162: Sin cambios
A163: 7 | B163: Costos locales proporcionales del proyecto (por ejemplo, TI, investigación) | D163: =IF('Datos básicos'!C20="Sí",CONCATENATE("Ayuda:",Ejemplo!P62),"") -> Ayuda:Esta línea presupuestaria es únicamente para organizaciones que trabajan con una distribución o prorrateo de los costos generales en sus sistemas contables y que pueden aportar los comprobantes correspondientes. El tipo de comprobante se determina para cada caso. Un ejemplo concreto es el comprobante porcentual basado en los costos totales y los registros de tiempo. | I163: =SUM(I164:I168) -> 0.00 €
I164: =ROUND(D164*F164*H164,2) -> 0.00 € | L164: Sin cambios
I165: =ROUND(D165*F165*H165,2) -> 0.00 € | L165: Sin cambios
I166: 0.00 € | L166: Sin cambios
I167: 0.00 € | L167: Sin cambios
I168: 0.00 € | L168: Sin cambios
B169: Subtotal costos directos | I169: =I5+I43+I73+I102+I130+I152+I163 -> 0.00 €
A170: 8 | B170: Costos generales de administración | D170: =IF('Datos básicos'!C20="Sí",CONCATENATE("Ayuda:",Ejemplo!P66),"") -> Ayuda:Los costos generales de administración deberían ascender a 0 %. Normalmente estos costos son asumidos como aporte propio del receptor del financiamiento. Si el receptor del financiamiento no puede asumirlos, la GIZ puede hacerse cargo de un pequeño porcentaje de los costos generales de administración. En su caso, un auditor o una auditora comprueba la clase y la cuantía de los costos. Si los gastos generales administrativos se calculan con base a menos líneas presupuestarias, se requiere informar a la gestión de contratos al respecto. | I170: =I171 -> 0.00 €
B171: Costos generales de administración (sobre las líneas presupuestarias 1-X) | D171: ='Datos básicos'!E7 -> 0% | H171: =I169 -> 0.00 € | I171: =ROUND(D171*H171,2) -> 0.00 € | L171: Sin cambios
B172: Subtotal financiamiento de la GIZ (hasta / contra justificante)* (costos directos + costos generales de administración) | I172: =I169+I170 -> 0.00 €
A173: 9 | B173: Transferencia de financiamientos a receptores terceros —debe presentarse un presupuesto detallado— | D173: =IF('Datos básicos'!C20="Sí",CONCATENATE("Ayuda:",Ejemplo!P69),"") -> Ayuda:En este caso, se trata de receptores terceros (entidades de coimplementación). Son contrapartes que implementan de forma autónoma una parte del proyecto. Debe presentarse un presupuesto aparte y el proyecto de la GIZ debe realizar un examen de la aptitud comercial y jurídica (solo los criterios personalidad jurídica y utilidad pública). | I173: =SUM(I174:I179) -> 0.00 €
B174: XYZ (nombre del receptor tercero) | D174: 1 | E174: Unidad | F174: 1 | G174: Transferencia | H174: ='Transferencia de financiamiento'!I120 -> 0.00 € | I174: =D174*F174*H174 -> 0.00 € | L174: Sin cambios
B175: XYZ (nombre del receptor tercero) | D175: 1 | E175: Unidad | F175: 1 | G175: Transferencia | H175: 0.00 € | I175: =D175*F175*H175 -> 0.00 € | L175: Sin cambios
B176: XYZ (nombre del receptor tercero) | D176: 1 | E176: Unidad | F176: 1 | G176: Transferencia | H176: 0.00 € | I176: 0.00 € | L176: Sin cambios
B177: XYZ (nombre del receptor tercero) | D177: 1 | E177: Unidad | F177: 1 | G177: Transferencia | H177: 0.00 € | I177: 0.00 € | L177: Sin cambios
B178: XYZ (nombre del receptor tercero) | D178: 1 | E178: Unidad | F178: 1 | G178: Transferencia | H178: 0.00 € | I178: 0.00 € | L178: Sin cambios
B179: XYZ (nombre del receptor tercero) | D179: 1 | E179: Unidad | F179: 1 | G179: Transferencia | H179: 0.00 € | I179: 0.00 € | K179: Porcentajes | L179: Sin cambios
B180: Contribución de la GIZ (hasta / contra justificante)* | D180: =IF('Datos básicos'!C20="Sí",CONCATENATE("Ayuda:",Ejemplo!P74),"") -> Ayuda:Indique solamente el valor total del porcentaje propio / financiamiento de terceros. En la descripción del proyecto se debe incluir una descripción breve del financiamiento proporcional. | I180: =I172+I173 -> 0.00 € | K180: =IFERROR(I180/$I$190,"") -> 
A181: 10 | B181: Contribución propio / financiamiento de terceros | J181: =SUM(J182:J189) -> 0.00
B182: =_xlfn.IFS('Datos básicos'!C8="No","sin fondos financieros propios",'Datos básicos'!C8="Sí",'Datos básicos'!C3,'Datos básicos'!C8="Seleccionar", "Introduzca primero los datos básicos",TRUE,"") -> Introduzca primero los datos básicos | D182: 1 | E182: Unidad | F182: 1 | G182: Aporte | H182: =IF('Datos básicos'!C8="Sí",'Datos básicos'!E8,"") ->  | J182: =H182 ->  | K182: =IFERROR(J182/$I$190,"") ->  | L182: Sin cambios
B183: =_xlfn.IFS('Datos básicos'!C9=0,"No financiamanto de terceros",'Datos básicos'!C9= "Seleccionar", "Introduzca primero los datos básicos",'Datos básicos'!C9>0,'Datos básicos'!E9,TRUE,"") -> Introduzca primero los datos básicos | D183: 1 | E183: Unidad | F183: 1 | G183: Aporte | H183: =_xlfn.IFS('Datos básicos'!$C$9="Seleccionar", "",'Datos básicos'!$C$9>0,'Datos básicos'!G9, TRUE,"") ->  | K183: =IFERROR(J183/$I$190,"") ->  | L183: Sin cambios
B184: =_xlfn.IFS('Datos básicos'!C9=0,"No financiamanto de terceros",'Datos básicos'!C9= "Seleccionar", "Introduzca primero los datos básicos",'Datos básicos'!C9>0,'Datos básicos'!E10,TRUE,"") -> Introduzca primero los datos básicos | D184: 1 | E184: Unidad | F184: 1 | G184: Aporte | H184: =_xlfn.IFS('Datos básicos'!$C$9="Seleccionar", "",'Datos básicos'!$C$9>0,'Datos básicos'!G10, TRUE,"") ->  | L184: Sin cambios
B185: =_xlfn.IFS('Datos básicos'!C9=0,"No financiamanto de terceros",'Datos básicos'!C9= "Seleccionar", "Introduzca primero los datos básicos",'Datos básicos'!C9>0,'Datos básicos'!E11,TRUE,"") -> Introduzca primero los datos básicos | D185: 1 | E185: Unidad | F185: 1 | G185: Aporte | H185: =_xlfn.IFS('Datos básicos'!$C$9="Seleccionar", "",'Datos básicos'!$C$9>0,'Datos básicos'!G11, TRUE,"") ->  | K185: =IFERROR(J185/$I$190,"") ->  | L185: Sin cambios
B186: =_xlfn.IFS('Datos básicos'!C9=0,"No financiamanto de terceros",'Datos básicos'!C9= "Seleccionar", "Introduzca primero los datos básicos",'Datos básicos'!C9>0,'Datos básicos'!E12,TRUE,"") -> Introduzca primero los datos básicos | D186: 1 | E186: Unidad | F186: 1 | G186: Aporte | H186: =_xlfn.IFS('Datos básicos'!$C$9="Seleccionar", "",'Datos básicos'!$C$9>0,'Datos básicos'!G12, TRUE,"") ->  | L186: Sin cambios
B187: =_xlfn.IFS('Datos básicos'!C9=0,"No financiamanto de terceros",'Datos básicos'!C9= "Seleccionar", "Introduzca primero los datos básicos",'Datos básicos'!C9>0,'Datos básicos'!E13,TRUE,"") -> Introduzca primero los datos básicos | D187: 1 | E187: Unidad | F187: 1 | G187: Aporte | H187: =_xlfn.IFS('Datos básicos'!$C$9="Seleccionar", "",'Datos básicos'!$C$9>0,'Datos básicos'!G13, TRUE,"") ->  | L187: Sin cambios
B188: =_xlfn.IFS('Datos básicos'!C9=0,"No financiamanto de terceros",'Datos básicos'!C9= "Seleccionar", "Introduzca primero los datos básicos",'Datos básicos'!C9>0,'Datos básicos'!E14,TRUE,"") -> Introduzca primero los datos básicos | D188: 1 | E188: Unidad | F188: 1 | G188: Aporte | H188: =_xlfn.IFS('Datos básicos'!$C$9="Seleccionar", "",'Datos básicos'!$C$9>0,'Datos básicos'!G14, TRUE,"") ->  | L188: Sin cambios
B189: =_xlfn.IFS('Datos básicos'!C9=0,"No financiamanto de terceros",'Datos básicos'!C9= "Seleccionar", "Introduzca primero los datos básicos",'Datos básicos'!C9>0,'Datos básicos'!E15,TRUE,"") -> Introduzca primero los datos básicos | D189: 1 | E189: Unidad | F189: 1 | G189: Aporte | H189: =_xlfn.IFS('Datos básicos'!$C$9="Seleccionar", "",'Datos básicos'!$C$9>0,'Datos básicos'!G15, TRUE,"") ->  | J189: =H189 ->  | K189: =IFERROR(J189/$I$190,"") ->  | L189: Sin cambios
B190: Financiamiento total | I190: =I180+J181 -> 0.00 € | K190: =SUM(K180:K189) -> 0%
B192: *Todas las líneas presupuestarias (excepto los costos generales de administración) deben liquidarse contra justificante.
B194: Información: En el caso de que esté previsto financiar adjudicaciones para servicios externos y/o para equipos y materiales y/o suministros con cargo a fondos de la GIZ, deben observarse las directrices de adjudicación relevantes en virtud del texto del contrato.
B196: No se financian los ingresos y beneficios del receptor. No se financia la facturación interna entre unidades organizativas del receptor.
B198: En caso de complementos al contrato: Realice las adaptaciones presupuestarias sobre la base del presupuesto acordado contractualmente por última vez y destaque los cambios en color. La GIZ no puede asumir los costos que se generan por las fluctuaciones cambiarias.

Sheet Transferencia de financiamiento
B1: Presupuesto estimado - Anexo 1 | D1: Nombre del receptor tercero: | J1: ='Datos básicos'!C22 -> 00:00:00 | N1: sin cambios
N2: cambios
B3: Descripción | C3: Có- digo | D3: Canti-dad | E3: Unidad (p. ej., persona, vehículo, sala…) | F3: Número | G3: Unidad (p. ej., meses, días, cursos…) | H3: Subvencio-nable hasta en EUR (precio por unidad) | I3: Contribución total de la GIZ en EUR (hasta) | J3: Contribución propia / financiamiento de terceros en EUR (hasta) | L3: =IF($L$4="VE",CONCATENATE("En el caso de ajustes contractuales",CHAR(10),"¿Ha cambiado la línea presupuestaria?"),"") -> 
B4: =IF('Datos básicos'!C20="Sí","Nota: Las celdas con fondo azul deben ser rellenados por el receptor","") -> Nota: Las celdas con fondo azul deben ser rellenados por el receptor | I4: =IF('Datos básicos'!C20="Sí","Nota: se calculan automáticamente","") -> Nota: se calculan automáticamente | L4: =IF('Datos básicos'!C5="Complemento al contrato","VE","NOVE") -> NOVE
A5: 1 | B5: Personal propio - precio de coste para los empleados del receptor (denominación de función) (Indicación 1: Solo colaboradores y colaboradoras de sus organizaciones; la acreditación de esta línea presupuestaria debe realizarse en forma de liquidaciones salariales o, en el caso de financiamientos parciales, en forma de liquidaciones salariales y registros de tiempos trabajados; Indicación 2: Solamente pueden liquidarse costos directos del personal (costo bruto del personal para el empleador); los suplementos, como costos generales de personal, que se calculan de manera prorrateada sobre el personal, no son subvencionables). | D5: =IF('Datos básicos'!C20="Sí",CONCATENATE("Ayuda:",Ejemplo!P5),"") -> Ayuda:La columna “Subvencionable hasta” debería indicar siempre el costo bruto del empleador. En el caso de los puestos de jornada parcial el porcentaje debe indicarse en la columna D. Indique qué costos adicionales no salariales prescritos por ley se generan en su país. Por norma general son financiables las contribuciones sociales y los pagos acordados en virtud del contrato de trabajo o del convenio colectivo (excepto los pagos de bonificaciones o las participaciones en los beneficios). Otros gastos accesorios deberán concertarse, examinarse e integrarse en la línea presupuestaria en forma de nota antes de la elaboración del contrato. Los contratos de miniempleos o de personal temporal estudiantil se deben atribuir a los costos de personal, aun cuando no se abonen contribuciones sociales. Si está previsto financiar proporcionalmente a varias personas (por ejemplo, 3 personas a un 75 %) incrementar el número de meses correspondientemente e incluir el número de personas en la descripción de la línea presupuestaria. | I5: =SUM(I6:I31) -> 0.00 € | J5: La GIZ no puede aceptar líneas presupuestarias de manera prorrateada, excepto "costos de personal", que se pueden atribuir porcentualmente, así como la clase de costos “Costos locales proporcionales del proyecto”. Un posible porcentaje propio o un posible financiamiento de terceros debe utilizarse para otras líneas presupuestarias que no están siendo ya financiadas por la GIZ. | K5: =IF(SUM(I5,#REF!,I32)>0.4*I119,1,0) ->  | L5: =IF(L4="VE","ATENCIÓN: La GIZ no puede asumir los costos que se generan por las fluctuaciones cambiarias.","") -> 
E6: Persona | G6: Meses | I6: =ROUND(D6*F6*H6,2) -> 0.00 € | L6: Sin cambios
E7: Persona | G7: Meses | I7: =ROUND(D7*F7*H7,2) -> 0.00 € | L7: Sin cambios
E8: Persona | G8: Meses | I8: 0.00 € | L8: Sin cambios
E9: Persona | G9: Meses | I9: 0.00 € | L9: Sin cambios
E10: Persona | G10: Meses | I10: =ROUND(D10*F10*H10,2) -> 0.00 € | L10: sin cambios
E11: Persona | G11: Meses | I11: 0.00 € | L11: Sin cambios
E12: Persona | G12: Meses | I12: 0.00 € | L12: Sin cambios
E13: Persona | G13: Meses | I13: 0.00 € | L13: Sin cambios
E14: Persona | G14: Meses | I14: 0.00 € | L14: Sin cambios
E15: Persona | G15: Meses | I15: 0.00 € | L15: Sin cambios
E16: Persona | G16: Meses | I16: =ROUND(D16*F16*H16,2) -> 0.00 € | L16: sin cambios
E17: Persona | G17: Meses | I17: 0.00 € | L17: Sin cambios
E18: Persona | G18: Meses | I18: 0.00 € | L18: Sin cambios
E19: Persona | G19: Meses | I19: 0.00 € | L19: Sin cambios
E20: Persona | G20: Meses | I20: 0.00 € | L20: Sin cambios
E21: Persona | G21: Meses | I21: 0.00 € | L21: sin cambios
E22: Persona | G22: Meses | I22: 0.00 € | L22: Sin cambios
E23: Persona | G23: Meses | I23: 0.00 € | L23: Sin cambios
E24: Persona | G24: Meses | I24: 0.00 € | L24: Sin cambios
E25: Persona | G25: Meses | I25: 0.00 € | L25: Sin cambios
E26: Persona | G26: Meses | I26: 0.00 € | L26: Sin cambios
E27: Persona | G27: Meses | I27: 0.00 € | L27: sin cambios
E28: Persona | G28: Meses | I28: 0.00 € | L28: Sin cambios
E29: Persona | G29: Meses | I29: 0.00 € | L29: Sin cambios
E30: Persona | G30: Meses | I30: 0.00 € | L30: Sin cambios
E31: Persona | G31: Meses | I31: 0.00 € | L31: Sin cambios
A32: 2 | B32: Servicios externos (tipo/contenido del servicio) | D32: =IF('Datos básicos'!C20="Sí",CONCATENATE("Ayuda:",Ejemplo!P11),"") -> Ayuda:Indicar el nombre de la función; ningún detalle del contrato (horas de trabajo, etc.); mencionar solo el número de los contratos y el valor planificado (deben observarse las directrices de adjudicación relevantes según el texto del contrato); por contrato debería utilizarse una línea presupuestaria; todos los costos generados durante la realización de la prestación en el marco de un contrato de servicios (por ejemplo, capacitación, viajes) se indican en una línea presupuestaria. Eventos: Las prestaciones que realiza un mismo oferente deben indicarse en una línea presupuestaria (por ejemplo, si el catering y el lugar de un evento son ofertados por un hotel, entonces deben indicarse en una misma línea presupuestaria; si se reserva otro hotel para el alojamiento, ese se incluye entonces en una línea presupuestaria individual). Los ingresos que percibe el receptor en concepto de la organización de eventos no se pueden financiar con cargo al contrato (p. ej., alquiler de salas para dependencias propias). Solo se financian costos que se puedan acreditar fehacientemente. | I32: =SUM(I33:I53) -> 0.00 €
E33: Contrato | I33: =ROUND(D33*H33,2) -> 0.00 € | L33: Sin cambios
E34: Contrato | I34: 0.00 € | L34: Sin cambios
E35: Contrato | I35: 0.00 € | L35: Sin cambios
E36: Contrato | I36: 0.00 € | L36: Sin cambios
E37: Contrato | I37: 0.00 € | L37: Sin cambios
E38: Contrato | I38: =ROUND(D38*H38,2) -> 0.00 € | L38: Sin cambios
E39: Contrato | I39: 0.00 €
E40: Contrato | I40: 0.00 €
E41: Contrato | I41: 0.00 €
E42: Contrato | I42: 0.00 €
E43: Contrato | I43: 0.00 € | L43: Sin cambios
E44: Contrato | I44: 0.00 € | L44: Sin cambios
E45: Contrato | I45: 0.00 € | L45: Sin cambios
E46: Contrato | I46: 0.00 € | L46: Sin cambios
E47: Contrato | I47: =ROUND(D47*H47,2) -> 0.00 € | L47: Sin cambios
E48: Contrato | I48: 0.00 € | L48: Sin cambios
E49: Contrato | I49: =ROUND(D49*H49,2) -> 0.00 € | L49: Sin cambios
E50: Contrato | I50: 0.00 € | L50: Sin cambios
E51: Contrato | I51: 0.00 € | L51: Sin cambios
E52: Contrato | I52: 0.00 € | L52: Sin cambios
E53: Contrato | I53: 0.00 € | L53: Sin cambios
A54: 3 | B54: Costos de transporte / gastos de viaje | D54: =IF('Datos básicos'!C20="Sí",CONCATENATE("Ayuda:",Ejemplo!P22),"") -> Ayuda:Entre los gastos de viaje se cuentan normalmente todos los tipos de transporte, alojamientos, viáticos, visados. Otros costos deben indicarse por separado. La liquidación se realiza con base en las facturas y/o las normas sobre viajes del receptor y/o las disposiciones legales (por ejemplo: Ley federal alemana de gastos de viaje). No es deseable una distribución en diferentes grupos de personas. No indique cantidades de los vuelos; en caso de divergencias serían necesarios complementos al contrato; si se lleva a cabo una auditoría se comprobará el número de los vuelos. | I54: =SUM(I55:I70) -> 0.00 €
I55: =ROUND(D55*H55,2) -> 0.00 € | L55: Sin cambios
I56: 0.00 € | L56: Sin cambios
I57: 0.00 € | L57: Sin cambios
I58: 0.00 € | L58: Sin cambios
I59: 0.00 € | L59: Sin cambios
I60: 0.00 € | L60: Sin cambios
I61: =ROUND(D61*H61,2) -> 0.00 € | L61: Sin cambios
I62: =ROUND(D62*H62,2) -> 0.00 € | L62: Sin cambios
I63: 0.00 € | L63: Sin cambios
I64: 0.00 € | L64: Sin cambios
I65: =ROUND(D65*H65,2) -> 0.00 € | L65: Sin cambios
I66: 0.00 € | L66: Sin cambios
I67: 0.00 € | L67: Sin cambios
I68: 0.00 € | L68: Sin cambios
I69: 0.00 € | L69: Sin cambios
I70: 0.00 € | L70: Sin cambios
A71: 4 | B71: Adquisición de equipos y materiales | D71: =IF('Datos básicos'!C20="Sí",CONCATENATE("Ayuda:",Ejemplo!P35),"") -> Ayuda:Los bienes que se adquieren y acreditan en una misma factura, deberían indicarse en una línea presupuestaria. P. ej., el equipamiento de TI se puede consignar como una línea presupuestaria. En ese caso debería incluirse entre paréntesis una descripción más detallada de los equipos y materiales que previsiblemente se adquirirán. En el caso de medicamentos y productos agroquímicos, para una autorización se requiere información adicional. Para ello, rellene las hojas "Medicamentos”, “Pesticidas y fertilizantes minerales”. | I71: =SUM(I72:I87) -> 0.00 €
I72: =ROUND(D72*H72,2) -> 0.00 € | L72: Sin cambios
I73: 0.00 € | L73: Sin cambios
I74: 0.00 € | L74: Sin cambios
I75: 0.00 € | L75: Sin cambios
I76: 0.00 € | L76: Sin cambios
I77: 0.00 € | L77: Sin cambios
I78: 0.00 € | L78: Sin cambios
I79: 0.00 € | L79: Sin cambios
I80: =ROUND(D80*H80,2) -> 0.00 € | L80: sin cambios
I81: 0.00 € | L81: Sin cambios
I82: =ROUND(D82*H82,2) -> 0.00 € | L82: Sin cambios
I83: 0.00 € | L83: Sin cambios
I84: 0.00 € | L84: Sin cambios
I85: 0.00 € | L85: Sin cambios
I86: 0.00 € | L86: sin cambios
I87: 0.00 € | L87: Sin cambios
A88: 5 | B88: Otros costos / consumibles | D88: =IF('Datos básicos'!C20="Sí",CONCATENATE("Ayuda:",Ejemplo!P46),"") -> Ayuda:Tenga en cuenta que los costos indirectos se enmarcan dentro de los costos generales de administración. Solo se pueden presupuestar como líneas presupuestarias individuales los costos directos. Cuando es posible indicar los costos de alquiler, se pueden consignar solo los costos directos, o sea, el alquiler neto sin los gastos accesorios. Los gastos accesorios son costos indirectos y como tales deben incluirse en los costos generales de administración. Al contrario que los equipos y materiales adquiridos, que se utilizan durante un período más largo, en el caso de los consumibles se trata de bienes que se consumen, como por ejemplo cartuchos para impresoras, papel de impresión. | I88: =SUM(I89:I104) -> 0.00 €
I89: =ROUND(D89*H89,2) -> 0.00 € | L89: Sin cambios
I90: =ROUND(D90*H90,2) -> 0.00 € | L90: Sin cambios
I91: 0.00 € | L91: Sin cambios
I92: 0.00 € | L92: Sin cambios
I93: 0.00 € | L93: Sin cambios
I94: 0.00 € | L94: Sin cambios
I95: 0.00 € | L95: Sin cambios
I96: 0.00 € | L96: Sin cambios
I97: 0.00 € | L97: Sin cambios
I98: 0.00 € | L98: Sin cambios
I99: 0.00 € | L99: Sin cambios
I100: 0.00 € | L100: Sin cambios
I101: =ROUND(D101*H101,2) -> 0.00 € | L101: Sin cambios
I102: 0.00 € | L102: Sin cambios
I103: 0.00 € | L103: Sin cambios
I104: 0.00 € | L104: Sin cambios
A105: 6 | B105: Recursos para apoyar directamente a beneficiarios terceros (Indicación: Esta línea presupuestaria hace referencia principalmente a aportes en especie a beneficiarios; en caso de aportes financieros, debe indicarse claramente cómo se acreditan los pagos. El procedimiento de selección para los beneficiarios debe explicarse en la descripción del proyecto). | D105: =IF('Datos básicos'!C20="Sí",CONCATENATE("Ayuda:",Ejemplo!P57),"") -> Ayuda:Tenga en cuenta la indicación en la línea presupuestaria. Los justificantes deben acordarse en el presupuesto y los criterios de selección deben exponerse en la descripción del proyecto. Importante: En este caso se trata solo de beneficiarios que se benefician del proyecto del receptor. Entre estos se cuentan el fomento de empresas emergentes, el fomento de iniciativas, medidas de efectivo por trabajo, concursos de fomento, becas y similares. Se requiere concertación respecto a los justificantes. Respecto a los detalles se requiere asesoramiento de la sección Gestión de contratos. | I105: =SUM(I106:I111) -> 0.00 € | L105: =IF(L104="VE","ATENCIÓN: La GIZ no puede asumir los costos que se generan por las fluctuaciones cambiarias.","") -> 
B106: XXX (facturación contra ...) | I106: =ROUND(D106*F106*H106,2) -> 0.00 € | L106: Sin cambios
B107: XXX (facturación contra ...) | I107: 0.00 € | L107: Sin cambios
B108: XXX (facturación contra ...) | I108: 0.00 € | L108: Sin cambios
B109: XXX (facturación contra ...) | I109: 0.00 € | L109: Sin cambios
B110: XXX (facturación contra ...) | I110: 0.00 € | L110: Sin cambios
B111: XXX (facturación contra ...) | I111: 0.00 € | L111: Sin cambios
A112: 7 | B112: Costos locales proporcionales del proyecto (por ejemplo, TI, investigación) | D112: =IF('Datos básicos'!C20="Sí",CONCATENATE("Ayuda:",Ejemplo!P62),"") -> Ayuda:Esta línea presupuestaria es únicamente para organizaciones que trabajan con una distribución o prorrateo de los costos generales en sus sistemas contables y que pueden aportar los comprobantes correspondientes. El tipo de comprobante se determina para cada caso. Un ejemplo concreto es el comprobante porcentual basado en los costos totales y los registros de tiempo. | I112: =SUM(I113:I115) -> 0.00 €
I113: =ROUND(D113*F113*H113,2) -> 0.00 € | L113: Sin cambios
I114: =ROUND(D114*F114*H114,2) -> 0.00 € | L114: Sin cambios
I115: =ROUND(D115*F115*H115,2) -> 0.00 € | L115: Sin cambios
B116: Subtotal costos directos | I116: =I112+I105+I88+I71+I54+I32+I5 -> 0.00 €
A117: 8 | B117: Costos generales de administración | D117: =IF('Datos básicos'!C20="Sí",CONCATENATE("Ayuda:",Ejemplo!P66),"") -> Ayuda:Los costos generales de administración deberían ascender a 0 %. Normalmente estos costos son asumidos como aporte propio del receptor del financiamiento. Si el receptor del financiamiento no puede asumirlos, la GIZ puede hacerse cargo de un pequeño porcentaje de los costos generales de administración. En su caso, un auditor o una auditora comprueba la clase y la cuantía de los costos. Si los gastos generales administrativos se calculan con base a menos líneas presupuestarias, se requiere informar a la gestión de contratos al respecto. | I117: =I118 -> 0.00 €
B118: Costos generales de administración (sobre las líneas presupuestarias 1-X) | D118: 0% | H118: =I116 -> 0.00 € | I118: =D118*H118 -> 0.00 € | L118: Sin cambios
B119: Subtotal financiamiento de la GIZ (hasta / contra justificante)* (costos directos + costos generales de administración) | I119: =I116+I117 -> 0.00 €
B120: Contribución de la GIZ (hasta / contra justificante)* | I120: =I119 -> 0.00 €
B122: *Todas las líneas presupuestarias (excepto los costos generales de administración) deben liquidarse contra justificante.
B124: Información: En el caso de que esté previsto financiar adjudicaciones para servicios externos y/o para equipos y materiales y/o suministros con cargo a fondos de la GIZ, deben observarse las directrices de adjudicación relevantes en virtud del texto del contrato.
B126: No se financian los ingresos y beneficios del receptor. No se financia la facturación interna entre unidades organizativas del receptor.
B128: En caso de complementos al contrato: Realice las adaptaciones presupuestarias sobre la base del presupuesto acordado contractualmente por última vez y destaque los cambios en color. La GIZ no puede asumir los costos que se generan por las fluctuaciones cambiarias.

Sheet Ejemplo
A1: Presupuesto estimado - Anexo 1 | J1: ='Datos básicos'!C33 -> 00:00:00 | P1: Instrucciones: Esta hoja sirve únicamente como orientación para cumplimentar la hoja “Presupuesto financiamientos”.
B3: Descripción | C3: Código | D3: Número | E3: Unidad (p. ej., persona, vehículo, sala…) | F3: Número | G3: Unidad (p. ej., meses, días, cursos…) | H3: Subvencio-nable hasta en EUR (precio por unidad) | I3: Contribución total de la GIZ en EUR (hasta) | J3: Contribución propia / financiamiento de terceros en EUR (hasta) | P3: Indicaciones generales: Este formato del presupuesto es válido como base de liquidación. Si lo desea, para su uso interno puede crear otros archivos con información más detallada. Todas las partidas indicadas en el presupuesto se deben reflejar en la descripción del proyecto para que quede clara la referencia al proyecto. La tabla dispone de fórmulas que deben conservarase. Mantenga el formato con dos decimales. Se recomienda redondear al alza las unidades en la medida de lo posible. Los costos se acuerdan con un valor de “hasta”.
B4: Nota: Las celdas con fondo azul deben ser rellenados por el receptor | I4: Nota: se calculan automáticamente | P4: Indicaciones para la cumplimentación
A5: 1 | B5: Personal propio - precio de coste para los empleados del receptor (denominación de función) (Indicación 1: Solo colaboradores y colaboradoras de sus organizaciones; la acreditación de esta línea presupuestaria debe realizarse en forma de liquidaciones salariales o, en el caso de financiamientos parciales, en forma de liquidaciones salariales y registros de tiempos trabajados; Indicación 2: Solamente pueden liquidarse costos directos del personal (costo bruto del personal para el empleador); los suplementos, como costos generales de personal, que se calculan de manera prorrateada sobre el personal, no son subvencionables). | I5: =SUM(I6:I10) -> 82,000.00 | J5: La GIZ no puede aceptar líneas presupuestarias de manera prorrateada, excepto "costos de personal", que se pueden atribuir porcentualmente, así como la clase de costos “Costos locales proporcionales del proyecto”. Un posible porcentaje propio o un posible financiamiento de terceros debe utilizarse para otras líneas presupuestarias que no estén siendo ya financiadas por la GIZ. | P5: La columna “Subvencionable hasta” debería indicar siempre el costo bruto del empleador. En el caso de los puestos de jornada parcial el porcentaje debe indicarse en la columna D. Indique qué costos adicionales no salariales prescritos por ley se generan en su país. Por norma general son financiables las contribuciones sociales y los pagos acordados en virtud del contrato de trabajo o del convenio colectivo (excepto los pagos de bonificaciones o las participaciones en los beneficios). Otros gastos accesorios deberán concertarse, examinarse e integrarse en la línea presupuestaria en forma de nota antes de la elaboración del contrato. Los contratos de miniempleos o de personal temporal estudiantil se deben atribuir a los costos de personal, aun cuando no se abonen contribuciones sociales. Si está previsto financiar proporcionalmente a varias personas (por ejemplo, 3 personas a un 75 %) incrementar el número de meses correspondientemente e incluir el número de personas en la descripción de la línea presupuestaria.
B6: Encargado / encargada de la gestión de proyectos | D6: 100% | E6: Persona | F6: 20 | G6: Meses | H6: 3,000.00 | I6: =D6*F6*H6 -> 60,000.00
B7: Responsable de finanzas | D7: 50% | E7: Persona | F7: 20 | G7: Meses | H7: 2,200.00 | I7: =D7*F7*H7 -> 22,000.00
B8: Indemnizaciones por despido / Reservas por disposición legal | E8: Persona | G8: Meses | I8: =D8*F8*H8 -> 0.00
E9: Persona | G9: Meses | I9: =D9*F9*H9 -> 0.00
E10: Persona | G10: Meses | I10: =D10*F10*H10 -> 0.00
A11: 2 | B11: Servicios externos (tipo/contenido del servicio) | I11: =SUM(I12:I21) -> 7,000.00 | P11: Indicar el nombre de la función; ningún detalle del contrato (horas de trabajo, etc.); mencionar solo el número de los contratos y el valor planificado (deben observarse las directrices de adjudicación relevantes según el texto del contrato); por contrato debería utilizarse una línea presupuestaria; todos los costos generados durante la realización de la prestación en el marco de un contrato de servicios (por ejemplo, capacitación, viajes) se indican en una línea presupuestaria. Eventos: Las prestaciones que realiza un mismo oferente deben indicarse en una línea presupuestaria (por ejemplo, si el catering y el lugar de un evento son ofertados por un hotel, entonces deben indicarse en una misma línea presupuestaria; si se reserva otro hotel para el alojamiento, ese se incluye entonces en una línea presupuestaria individual). Los ingresos que percibe el receptor en concepto de la organización de eventos no se pueden financiar con cargo al contrato (p. ej., alquiler de salas para dependencias propias). Solo se financian costos que se puedan acreditar fehacientemente.
B12: Moderación | D12: 1 | E12: Contrato | H12: 5,000.00 | I12: =D12*H12 -> 5,000.00
B13: Catering y alquiler de salas | D13: 1 | E13: Contrato | H13: 2,000.00 | I13: =D13*H13 -> 2,000.00
B14: Experto / experta en tecnología solar | D14: 1 | E14: Contrato | I14: 0.00
B15: Experto / experta en... | D15: 1 | E15: Contrato | I15: 0.00
B16: personal externo (no en régimen asalariado con obligación de cotizar a la seguridad social con el receptor) | D16: 1 | E16: Contrato | I16: 0.00
B17: Contratos de asesoramiento | D17: 1 | E17: Contrato | I17: 0.00
B18: Empresas externas, p. ej. para transportes en autobús | D18: 1 | E18: Contrato | I18: 0.00
E19: Contrato | I19: 0.00
E20: Contrato | I20: 0.00
E21: Contrato | I21: 0.00
A22: 3 | B22: Costos de transporte / gastos de viaje | I22: =SUM(I23:I32) -> 4,500.00 | P22: Entre los gastos de viaje se cuentan normalmente todos los tipos de transporte, alojamientos, viáticos, visados. Otros costos deben indicarse por separado. La liquidación se realiza con base en las facturas y/o las normas sobre viajes del receptor y/o las disposiciones legales (por ejemplo: Ley federal alemana de gastos de viaje). No es deseable una distribución en diferentes grupos de personas. No indique cantidades de los vuelos; en caso de divergencias serían necesarios complementos al contrato; si se lleva a cabo una auditoría se comprobará el número de los vuelos.
B23: Vuelos internacionales | D23: 1 | E23: Unidad | H23: 4,000.00 | I23: =D23*H23 -> 4,000.00
B24: Vuelos nacionales | D24: 1 | E24: Unidad | H24: 500.00 | I24: =D24*H24 -> 500.00
B25: Gastos de viaje internacionales (viáticos / viáticos por pernoctación, medios de transporte, visado, vacunas necesarias) | E25: Unidad | I25: 0.00
B26: Gastos de viaje nacionales (viáticos / viáticos por pernoctación, medios de transporte) | E26: Unidad | I26: 0.00
B27: Costos de transporte de mercancías | E27: Unidad | I27: 0.00
B28: Gastos de viaje de participantes en talleres | E28: Unidad | I28: 0.00
I29: 0.00
B30: 4. Co2 Kompensationen | I30: =D30*F30*H30 -> 0.00 | K30: möglicherweise erstmal raus
I31: =D31*F31*H31 -> 0.00
I32: =D32*F32*H32 -> 0.00
A35: 4 | B35: Adquisición de equipos y materiales | I35: =SUM(I36:I45) -> 4,000.00 | P35: Los bienes que se adquieren y acreditan en una misma factura, deberían indicarse en una línea presupuestaria. P. ej., el equipamiento de TI se puede consignar como una línea presupuestaria. En ese caso debería incluirse entre paréntesis una descripción más detallada de los equipos y materiales que previsiblemente se adquirirán. En el caso de medicamentos y productos agroquímicos, para una autorización se requiere información adicional. Para ello, rellene las hojas "Medicamentos”, “Pesticidas y fertilizantes minerales”.
B36: Equipamiento de TI (computadora portátil, impresora, proyector, accesorios) | D36: 1 | E36: Adquisición | H36: 4,000.00 | I36: =D36*H36 -> 4,000.00
B37: Equipamiento fotográfico (cámara y accesorios) | I37: =D37*H37 -> 0.00
B38: Máquina XY (indicar en concreto qué máquina, ¡pero no mencionar el modelo concreto ni la empresa!) | I38: 0.00
B39: Mobiliario (escritorios, sillas, armarios) | I39: 0.00
B40: Indicar exactamente los vehículos, de qué tipo: p. ej. vehículo eléctrico, SUV blindado, escúter... | I40: 0.00
B41: Teléfonos móviles | I41: 0.00
I42: 0.00
I43: 0.00
I44: 0.00
I45: 0.00
A46: 5 | B46: Otros costos / consumibles | D46: =IF('Datos básicos'!C31="Ja",CONCATENATE("AUSFÜLLHILFE: ",TRIM(Ejemplo!P69)),"") ->  | I46: =SUM(I47:I56) -> 100.00 | P46: Tenga en cuenta que los costos indirectos se enmarcan dentro de los costos generales de administración. Solo se pueden presupuestar como líneas presupuestarias individuales los costos directos. Cuando es posible indicar los costos de alquiler, se pueden consignar solo los costos directos, o sea, el alquiler neto sin los gastos accesorios. Los gastos accesorios son costos indirectos y como tales deben incluirse en los costos generales de administración. Al contrario que los equipos y materiales adquiridos, que se utilizan durante un período más largo, en el caso de los consumibles se trata de bienes que se consumen, como por ejemplo cartuchos para impresoras, papel de impresión.
B47: Material de oficina (papel de impresión, cartuchos para impresoras, material de escritura) | D47: 1 | E47: Unidad | H47: 100.00 | I47: =D47*H47 -> 100.00
B48: Software de TI, licencias | I48: =D48*H48 -> 0.00
B49: Material de embalaje para xxx | I49: 0.00
B50: Material de laboratorio | I50: 0.00
B51: Productos higiénicos | I51: 0.00
B52: Herramientas | I52: 0.00
B53: Agua | I53: 0.00
B54: Folletos / material publicitario | I54: 0.00
B55: Gastos telefónicos, tarjetas telefónicas… | I55: 0.00
I56: 0.00
A57: 6 | B57: Recursos para apoyar directamente a beneficiarios terceros (Indicación: Esta línea presupuestaria hace referencia principalmente a aportes en especie a beneficiarios terceros; en caso de aportes financieros, debe indicarse claramente cómo se acreditan los pagos. El procedimiento de selección para los beneficiarios terceros debe explicarse en la descripción del proyecto). | D57: =IF('Datos básicos'!C31="Ja",CONCATENATE("AUSFÜLLHILFE: ",TRIM(Ejemplo!P75)),"") ->  | I57: =SUM(I58:I61) -> 600.00 | P57: Tenga en cuenta la indicación en la línea presupuestaria. Los justificantes deben acordarse en el presupuesto y los criterios de selección deben exponerse en la descripción del proyecto. Importante: En este caso se trata solo de beneficiarios que se benefician del proyecto del receptor. Entre estos se cuentan el fomento de empresas emergentes, el fomento de iniciativas, medidas de efectivo por trabajo, concursos de fomento, becas y similares. Se requiere concertación respecto a los justificantes. Respecto a los detalles se requiere asesoramiento de la sección Gestión de contratos.
B58: Efectivo por trabajo (La liquidación se realiza contra la lista de participación, confirmación de recepción mediante firma o huella dactilar; el procedimiento de selección se muestra en la descripción del proyecto) | D58: 10 | E58: Personas | F58: 20 | G58: Días | H58: 3.00 | I58: =D58*F58*H58 -> 600.00
I59: =D59*F59*H59 -> 0.00
I60: =D60*F60*H60 -> 0.00
I61: =D61*F61*H61 -> 0.00
A62: 7 | B62: Costos locales proporcionales del proyecto (por ejemplo, TI, investigación) | I62: =SUM(I63:I64) -> 0.00 | P62: Esta línea presupuestaria es únicamente para organizaciones que trabajan con una distribución o prorrateo de los costos generales en sus sistemas contables y que pueden aportar los comprobantes correspondientes. El tipo de comprobante se determina para cada caso. Un ejemplo concreto es el comprobante porcentual basado en los costos totales y los registros de tiempo.
E63: Unidad | I63: =D63*H63 -> 0.00
I64: =D64*H64 -> 0.00
B65: Subtotal costos directos | I65: =I46+I35+I11+I5+I22+I30+I57 -> 98,200.00
A66: 8 | B66: Costos generales de administración | I66: =I67 -> 4,910.00 | P66: Los costos generales de administración deberían ascender a 0 %. Normalmente estos costos son asumidos como aporte propio del receptor del financiamiento. Si el receptor del financiamiento no puede asumirlos, la GIZ puede hacerse cargo de un pequeño porcentaje de los costos generales de administración. En su caso, un auditor o una auditora comprueba la clase y la cuantía de los costos. Si los gastos generales administrativos se calculan con base a menos líneas presupuestarias, se requiere informar a la gestión de contratos al respecto.
B67: Costos generales de administración (sobre las líneas presupuestarias 1-7) | D67: 5% | H67: =I65 -> 98,200.00 | I67: =D67*H67 -> 4,910.00
B68: Subtotal financiamiento de la GIZ (hasta / contra justificante)* (costos directos + costos generales de administración) | I68: =I65+I66 -> 103,110.00
A69: 9 | B69: Transferencia de financiamientos a receptores terceros —debe presentarse un presupuesto detallado— | D69: =IF('Datos básicos'!C31="Ja",CONCATENATE("AUSFÜLLHILFE: ",TRIM(Ejemplo!#REF!)),"") ->  | P69: En este caso, se trata de receptores terceros (entidades de coimplementación). Son contrapartes que implementan de forma autónoma una parte del proyecto. Debe presentarse un presupuesto aparte y el proyecto de la GIZ debe realizar un examen de la aptitud comercial y jurídica (solo los criterios personalidad jurídica y utilidad pública).
B70: OPQ | D70: 1 | E70: Unidad | F70: 1 | G70: Transferencia | H70: 10,000.00 | I70: =D70*F70*H70 -> 10,000.00 €
B71: XYZ (nombre del receptor tercero) | D71: 1 | E71: Unidad | F71: 1 | G71: Transferencia | I71: =D71*F71*H71 -> 0.00 €
B72: XYZ (nombre del receptor tercero) | D72: 1 | E72: Unidad | F72: 1 | G72: Transferencia | I72: =D72*F72*H72 -> 0.00 € | K72: Porcentajes
B73: Contribución de la GIZ (hasta / contra justificante)* | I73: =I68 -> 103,110.00 € | J73: =I73 -> 103,110.00 € | K73: =IFERROR(I73/$I$79,"") -> 87.30%
A74: =10 -> 10 | B74: Contribución propia / financiamiento de terceros | J74: =SUM(J75:J77) -> 15,000.00 | P74: Indique solamente el valor total del porcentaje propio / financiamiento de terceros. En la descripción del proyecto se debe incluir una descripción breve del financiamiento proporcional.
B75: ABC (contribución propia) | D75: 1 | E75: Unidad | F75: 1 | G75: Aporte | H75: 5,000.00 | J75: =H75 -> 5,000.00 | K75: =IFERROR(J75/$I$79,"") -> 4.23%
B76: DEF (financiamiento de terceros) | D76: 1 | E76: Unidad | F76: 1 | G76: Aporte | H76: 10,000.00 | J76: =H76 -> 10,000.00 | K76: =IFERROR(J76/$I$79,"") -> 8.47%
D77: 1 | E77: Unidad | F77: 1 | G77: Aporte | K77: =IFERROR(J77/$I$79,"") -> 0.00%
D78: 1 | E78: Unidad | F78: 1 | G78: Aporte | K78: =IFERROR(J78/$I$79,"") -> 0.00%
B79: Financiamiento total | I79: =I73+J74 -> 118,110.00 € | K79: =SUM(K73:K78) -> 100.00%
O80: =IFERROR(N80/$I$112,"") -> 
B81: *Todas las líneas presupuestarias (excepto los costos generales de administración) deben liquidarse contra justificante.
B83: Información: En el caso de que esté previsto financiar adjudicaciones para servicios externos y/o para equipos y materiales y/o suministros con cargo a fondos de la GIZ, deben observarse las directrices de adjudicación relevantes en virtud del texto del contrato. | O83: =IFERROR(N83/$I$112,"") -> 
B86: No se financian los ingresos y beneficios del receptor. No se financia la facturación interna entre unidades organizativas del receptor.
B87: En caso de complementos al contrato: Realice las adaptaciones presupuestarias sobre la base del presupuesto acordado contractualmente por última vez y destaque los cambios en color. La GIZ no puede asumir los costos que se generan por las fluctuaciones cambiarias. | P87: En la solicitud de modificación del contrato deben explicarse las reasignaciones presupuestarias. Especialmente en caso de que se incrementen los costos de personal deberá indicarse un motivo.
